Cogmind - Beta 9.4 @@@ ROGUE MODE // 2020.03.20 @ 08:41:34 Player: BadAss McGhee Result: Destroyed by Y-45 Defender with Beam Rifle Performance ------------- Evolutions (1) 500 Regions Visited (2) 400 Robots Destroyed (37) 185 Value Destroyed (1191) 1191 Prototype IDs (0) 0 Alien Tech Used (0) 0 Bonus (0) 0 TOTAL SCORE: 2276 Bonus ------- None Cogmind --------- Core Integrity 0/400 Matter 267/300 Energy 250/250 System Corruption 4% Temperature Cool (9) Movement Treading (180) Ox1 Location -9/Materials Parts ------- > --- POWER (1) -------- Ion Engine > --- PROPULSION (2) --- Light Treads Light Treads > --- UTILITY (4) ------ High-capacity Storage Unit Visual Processing Unit Signal Interpreter Armor Integrity Analyzer > --- WEAPON (2) ------- Heavy Assault Rifle Katana > --- INVENTORY (12) --- Light Treads Improved Heat Sink Improved Targeting Computer Improved Targeting Computer Melee Analysis Suite Core Shielding Small Laser Peak State ------------ > --- POWER ------------ Ion Engine > --- PROPULSION ------- Light Treads Light Treads > --- UTILITY ---------- High-capacity Storage Unit Visual Processing Unit Signal Interpreter Armor Integrity Analyzer > --- WEAPON ----------- Heavy Assault Rifle Katana > --- INVENTORY -------- Light Treads Improved Heat Sink Improved Targeting Computer Improved Targeting Computer Melee Analysis Suite Core Shielding Small Laser [Rating: 15] Favorites ----------- Power Ion Engine Engine Ion Engine Power Core Light Nuclear Core Propulsion Aluminum Leg Treads Light Treads Leg Aluminum Leg Wheel Wheel Utility Signal Interpreter Device Sensor Array Storage High-capacity Storage Unit Processor Signal Interpreter Weapon Assault Rifle Energy Gun Particle Gun Ballistic Gun Assault Rifle Impact Weapon Mace Slashing Weapon Katana Build | -11 -10 -9 ------- Run | Scr Mat Mat Slots Evolved 2 | . . 2 Power . | . . . Propulsion . | . . . Utility 2 | . . 2 Weapon . | . . . Parts Attached 44 | 6 13 25 Power 8 | 1 3 4 Engine 7 | 1 2 4 Core 1 | . 1 . Reactor . | . . . Propulsion 12 | 2 5 5 Treads 2 | . . 2 Leg 4 | 2 1 1 Wheel 6 | . 4 2 Hover . | . . . Flight . | . . . Utility 9 | 1 3 5 Device 2 | . . 2 Storage 4 | 1 2 1 Processor 3 | . 1 2 Hackware . | . . . Protection . | . . . Artifact . | . . . Weapon 15 | 2 2 11 Energy Gun 5 | . . 5 Energy Cannon . | . . . Ballistic Gun 7 | 2 2 3 Ballistic Cannon . | . . . Launcher . | . . . Special Weapon . | . . . Impact Weapon 2 | . . 2 Slashing Weapon 1 | . . 1 Piercing Weapon . | . . . Special Melee Weapon . | . . . Unidentified Prototypes . | . . . Parts Lost 17 | . 1 16 Power 2 | . . 2 Propulsion 5 | . . 5 Utility 2 | . . 2 Weapon 8 | . 1 7 Highest Loss Streak 5 | . 1 5 Average Slot Usage (%) 90 | . 98 84 Engine 10 | . 13 7 Core 1 | . . 1 Treads 1 | . . 2 Leg 10 | . 18 4 Wheel 7 | . 9 6 Device 3 | . . 5 Storage 12 | . 14 11 Processor 19 | . 12 25 Energy Gun 3 | . . 6 Ballistic Gun 14 | . 28 3 Impact Weapon 1 | . . 3 Slashing Weapon 3 | . . 6 Naked Turns . | . . . Heaviest Build 43 | 10 41 43 Greatest Support 40 | 20 20 40 Greatest Overweight (x) 13 | 2 4 13 Average Overweight (x) 2 | . 1 3 Largest Inventory Capacity 12 | 6 12 12 Average Capacity 11 | 5 11 12 Most Carried 12 | 1 12 8 Average Carried 5 | . 6 5 Final Capacity 12 | 6 12 12 Final Carried 9 | 1 9 7 Class Distribution -------------------- 54% | Mutant 26% | Scavenger-Mutant 8% | Scavenger-Assassin 6% | Assassin 4% | Skirmisher Dominant Class ---------------- Mutant | -10/Materials Scavenger-Mutant | -9/Materials Resources | -11 -10 -9 ----------- Run | Scr Mat Mat Matter Collected 894 | 239 370 285 Remotely . | . . . Salvage Created 1490 | . 597 893 Parts 86 | . 40 46 Haulers Intercepted . | . . . Recyclers Shooed . | . . . Parts Field Recycled . | . . . Retrieved Matter . | . . . Parts Self-Destructed . | . . . Prevented . | . . . Kills | -11 -10 -9 ------- Run | Scr Mat Mat Combat Hostiles Destroyed 33 | . 13 20 Melee 2 | . . 2 Guns 28 | . 13 15 AOE 2 | . . 2 Classes Destroyed 8 | . 4 4 Recycler 1 | . 1 . Operator 1 | . . 1 Watcher 2 | . 2 . Swarmer 3 | . 3 . Grunt 24 | . 10 14 Brawler 1 | . . 1 Duelist 2 | . . 2 Sentry 3 | . . 3 Best Kill Streak 4 | . 3 4 Combat Bots Only 4 | . 3 4 Max Kills in Single Turn 1 | . 1 1 Gunslinging . | . . . Exploded 1 | . . 1 Melee 1 | . . 1 Uniques/NPCs Destroyed . | . . . Combat | -11 -10 -9 -------- Run | Scr Mat Mat Damage Taken 2059 | . 565 1494 Core 534 | . 127 407 Absorbed by Shields . | . . . Core Remaining (%) 74 | 100 49 . Volleys Fired 130 | . 45 85 Largest 2 | . 2 2 Hottest 65 | . 40 65 Shots Fired 176 | . 90 86 Gun 176 | . 90 86 Cannon . | . . . Launcher . | . . . Special . | . . . Kinetic 126 | . 90 36 Thermal 33 | . . 33 Explosive . | . . . Electromagnetic 17 | . . 17 Robot Hit Streak 18 | . 12 18 Robot Miss Streak 3 | . 2 3 Penetration Max . | . . . Secondary Targets . | . . . Shots Hit Robots 127 | . 55 72 Core Hits 62 | . 28 34 Critical Hits 2 | . 1 1 Critical Kills 1 | . 1 . Critical Parts Destroyed 1 | . . 1 Melee Attacks 8 | . . 8 Impact 6 | . . 6 Slashing 2 | . . 2 Piercing . | . . . Sneak Attacks . | . . . Combat Hostiles . | . . . Follow-up Attacks . | . . . Damage Inflicted 1861 | . 638 1223 Guns 1592 | . 638 954 Cannons . | . . . Explosions 74 | . . 74 Melee 195 | . . 195 Ramming . | . . . Kinetic 1040 | . 638 402 Thermal 454 | . . 454 Explosive . | . . . Electromagnetic 172 | . . 172 Impact 138 | . . 138 Slashing 57 | . . 57 Piercing . | . . . Highest Corruption 4 | . . 4 Average Corruption 4 | . . 4 Corruption Purged . | . . . Effects 8 | . . 8 Message Errors 1 | . . 1 Heat Flow Errors 2 | . . 2 Data Loss (minor) 4 | . . 4 Targeting Errors 1 | . . 1 Overload Shots . | . . . Overflow Damage 9 | . . 9 Projectiles . | . . . Explosions . | . . . Melee 9 | . . 9 Knockbacks 3 | . . 3 Impact 3 | . . 3 Kinetic . | . . . Secondary . | . . . Self-Inflicted Damage 34 | . . 34 Shots 1 | . . 1 Rammed . | . . . Targets Rammed . | . . . Kicked . | . . . Crushed . | . . . Highest Temperature 256 | . 6 256 Average Temperature 58 | . 5 65 Received Heat Transfer 798 | . 252 546 Siege Activations . | . . . Robots Corrupted . | . . . Combat Hostiles . | . . . Parts Fried 1 | . . 1 Impact Corruptions 2 | . . 2 Robots Melted . | . . . Combat Hostiles . | . . . Parts Melted 2 | . . 2 Heat Transferred 1016 | . . 1016 Parts Sabotaged . | . . . Parts Stolen . | . . . Parts Stripped . | . . . Power Chain Reactions 2 | . . 2 Missiles Intercepted . | . . . Alert | -11 -10 -9 ------- Run | Scr Mat Mat Peak Influence 281 | . 227 281 Average Influence 124 | . 98 151 Maximum Alert Level 1 | . 1 1 Low Security (%) 82 | 100 97 70 Level 1 17 | . 2 29 Level 2 . | . . . Level 3 . | . . . Level 4 . | . . . Level 5 . | . . . High Security . | . . . Max Security . | . . . Squads Dispatched 5 | . 3 2 Investigation 2 | . 1 1 Extermination . | . . . Reinforcement 3 | . 2 1 Assault . | . . . Garrison . | . . . Intercept . | . . . Construction Impeded . | . . . Haulers Reinforced . | . . . Stealth | -11 -10 -9 --------- Run | Scr Mat Mat Distress Signals 4 | . 1 3 Communications Jammed . | . . . Distress Signals . | . . . Times Spotted 62 | . 22 40 Peak Tracking Total 6 | . 3 6 Tactical Retreats 7 | . 2 5 Traps | -11 -10 -9 ------- Run | Scr Mat Mat Traps Triggered . | . . . Indirectly . | . . . Trap Hack Attempts . | . . . Triggered . | . . . Disarmed . | . . . Reprogrammed . | . . . Reused . | . . . Traps Extracted . | . . . Installed . | . . . Triggered . | . . . Machines | -11 -10 -9 ---------- Run | Scr Mat Mat Machines Disabled . | . . . Max in Single Turn . | . . . Machines Sabotaged . | . . . Garrisons Compromised . | . . . Overloaded Fab Kills . | . . . Fab Network Shutdowns . | . . . Hacking | -11 -10 -9 --------- Run | Scr Mat Mat Machines Accessed 6 | . 3 3 Terminals 6 | . 3 3 Fabricators . | . . . Repair Stations . | . . . Recycling Units . | . . . Scanalyzers . | . . . Garrison Access . | . . . Total Hacks 16 | . 7 9 Successful 10 | . 5 5 Failed 6 | . 2 4 Catastrophic . | . . . Database Lockouts . | . . . Manual . | . . . Terminals 16 | . 7 9 Fabricators . | . . . Repair Stations . | . . . Recycling Units . | . . . Scanalyzers . | . . . Garrison Access . | . . . Terminal Hacks 10 | . 5 5 Record 6 | . 3 3 Emergency Access Points 1 | . . 1 Locate Traps 1 | . 1 . Investigation Status 1 | . 1 . Zone Layout 1 | . . 1 Fabricator Hacks . | . . . Repair Station Hacks . | . . . Recycling Unit Hacks . | . . . Scanalyzer . | . . . Garrison Access Hacks . | . . . Unauthorized Hacks . | . . . Terminals . | . . . Fabricators . | . . . Repair Stations . | . . . Recycling Units . | . . . Scanalyzers . | . . . Garrison Access . | . . . Data Cores Recovered 1 | . . 1 Used . | . . . Hacking Detections 3 | . 2 1 Full Trace Events 2 | . 1 1 Feedback Events . | . . . Feedback Blocked . | . . . Robot Schematics Acquired . | . . . Robots Built . | . . . Matter . | . . . Time . | . . . Total Robot Build Rating . | . . . Part Schematics Acquired . | . . . Parts Built . | . . . Matter . | . . . Time . | . . . Total Part Build Rating . | . . . Parts Repaired . | . . . Time . | . . . Parts Recycled . | . . . Recycled Matter . | . . . Retrieved Matter . | . . . Retrieved Components . | . . . Parts Scanalyzed . | . . . Part Schematics Acquired . | . . . Parts Damaged . | . . . Bothacking | -11 -10 -9 ------------ Run | Scr Mat Mat Used RIF Installer . | . . . Robots Hacked . | . . . Non-combat . | . . . Combat . | . . . Robot Hacks Applied . | . . . Relay Couplers Released . | . . . Robots Rewired . | . . . Allies Hacked . | . . . Hacks Repelled . | . . . Allies | -11 -10 -9 -------- Run | Scr Mat Mat Total Allies . | . . . Largest Group . | . . . Highest-Rated Group . | . . . Highest-Rated Ally . | . . . Total Orders . | . . . Ally Attacks . | . . . Total Damage . | . . . Kills . | . . . Allies Corrupted . | . . . Allies Melted . | . . . Intel | -11 -10 -9 ------- Run | Scr Mat Mat Robot Analysis Total . | . . . Derelict Logs Recovered . | . . . Drone Launches . | . . . Drone Recoveries . | . . . Exploration | -11 -10 -9 ------------- Run | Scr Mat Mat Turns Passed 1981 | 58 835 1088 Spaces Moved 917 | 41 489 387 Core 26 | 7 . 19 Treads 44 | . . 44 Legs 475 | 34 279 162 Wheels 372 | . 210 162 Hover . | . . . Flight . | . . . Fastest Speed 50 | 50 100 90 Average Speed 152 | 116 129 185 Slowest Speed 700 | 150 180 700 Overloaded Moves . | . . . Propulsion Burnouts . | . . . Robots Hopped . | . . . Cave-ins Triggered . | . . . Exploration Rate (%) 42 | 4 75 49 Regions Visited 2 Branch Regions . Pre-discovered Areas . | . . . Known Exits Taken 1 | . 1 . Unknown Exits Taken 1 | 1 . . Scrap Searched . | . . . Spaces Dug . | . . . Terrain Destroyed 5 | . . 5 Melee . | . . . Projectile . | . . . AOE 5 | . . 5 Actions | -11 -10 -9 --------- Run | Scr Mat Mat Total 1306 | 48 604 654 Wait 166 | . 35 131 Move 915 | 40 488 387 Hop . | . . . Pick Up 26 | 2 11 13 Fast Attach 14 | 5 4 5 Attach 15 | 1 1 13 Detach . | . . . Swap 15 | . 8 7 Drop 17 | . 12 5 Fire 130 | . 45 85 Melee 8 | . . 8 Ram . | . . . Kick . | . . . Crush . | . . . Escape Stasis . | . . . Rewire . | . . . Trap . | . . . Miscellaneous . | . . . Route ------- -11/Scrapyard -10/Materials (discovered 2 exits: *Mat / [*Min]) -9/Materials (discovered 3 exits: *Min x2 / *Sto) History --------- Turn | Location | Event 24 | -11/Scrapyard | Discovered new exit (range 16) 59 | -11/Scrapyard | Entered Materials 303 | -10/Materials | Build established: Mutant 387 | -10/Materials | Discovered new exit (range 9) 572 | -10/Materials | Discovered new exit (range 10) 720 | -10/Materials | Identified exit to Materials 863 | -10/Materials | Core integrity fell below 50% 894 | -10/Materials | Entered another Materials area 894 | -9/Materials | Evolved 2 slots: Utility x2 1091 | -9/Materials | Lost 5 parts (1p2n1u1w) 1172 | -9/Materials | Discovered new exit (range 16) 1173 | -9/Materials | Core integrity fell below 50% 1250 | -9/Materials | Discovered new exit (range 9) 1350 | -9/Materials | Lost 5 parts (1n1u3w) 1437 | -9/Materials | Identified exit to Storage 1620 | -9/Materials | Build established: Scavenger-Mutant 1661 | -9/Materials | Core integrity fell below 20% 1741 | -9/Materials | Discovered new exit (range 3) 1796 | -9/Materials | Identified exit to Mines 1801 | -9/Materials | Lost 3 parts (1p1n1w) 1982 | -9/Materials | Destroyed by Y-45 Defender with Beam Rifle Last Messages --------------- 01779_ K-01 Serf cleans the Processing Tank. 01779_ K-01 Serf collects debris. 01788_ R-06 Scavenger collects Beam Rifle. 01792_ R-06 Scavenger collects Imp. Ion Engine. 01796_ EXIT=IDENTIFIED: MINES 01862_ Acquired Lgt. Treads. 01869_ Acquired Imp. Targeting Computer. 01874_ Acquired Lgt. Treads. 01878_ Acquired Hvy. Assault Rifle. 01887_ Connecting with Terminal... 01908_ K-01 Serf cleans the Electrolysis Chamber. 01916_ G-34 Mercenary destroyed. 01919_ Acquired 31 matter. 01920_ K-01 Serf cleans the Electrolysis Chamber. 01924_ Acquired Ion Engine. 01927_ K-01 Serf cleans the Electrolysis Chamber. 01931_ K-01 Serf collects debris. 01940_ K-01 Serf cleans the Electrolysis Chamber. 01943_ W-16 Scout sends out distress signal. 01944_ K-01 Serf cleans the Electrolysis Chamber. Map ----- +----------------------------------------------------+ | ?????????????????????????????????????????????????? | | ?????????????????????????????????????????????????? | | ?????????????????????????????????????????????????? | | ?????????????????????????????????????????????????? | | ?????????????????????????????????????????????????? | | ?????????????????????????????????????????????????? | | ?????????????????????????????????????????????????? | | ?????????????????????????????????????????????????? | | ?????????????????????????????????????????????????? | | ?????????????????????????????????????????????????? | | ?????????????????????????????????????????????????? | | ?????????????????????????????????????????????????? | | ?????????????????????????????????????????????????? | | ?????????????????????????????????????????????????? | | ??????????????????????????######## #???????? | | ??????????????????????????######## #???????? | | ??????????????????????????####### #???????? | | ??????????????????????????######## #####???????? | | ??????????????????############?### ## ########## | | ??????????????????# ##" # # | | ??????????????????# ##"" # """ # | | ??????????????????# ## # """ =+%= ! | | ??????????????????# ##"" < # """ # %% | | ??????????????????# ## # """ ##"%= | | ??????????????????# ##"" # """ #%=%% | | ????????????####??# @ ##" # # ! | | ????????? ?# ######Y######### ## + T | | ?????????"" # ##### #??????# ## = # | | ?????????"" + #??????# ## [# | | ????????????# #??????# ## "T" ## % | | ????????????#"" """ #?????## ## """ ## | | ????????????#"T """ ####### # ## * | | ????????????#"" """ ######### % | | ????????????# k w #???????# [ | | ????????????# * =#???????# | | ????????????# """ """ ####### #???????# | | ????????????# """ """ # """ #######???????# | | ????????????# """ """ + """ #?????????????# | | ????????????# # """ #?????????????# | | ????????????# # #?????????????# | | ????????????# """ """ # #????????????## | | ????????????# """ """ # #????????????# | | ????????????# """ """ + #????????????# | | ????????????# # #????????????# > | | ????????????# #######????????????#! | | ????????????# ########+#####???????????????# | | ?????######## #???# = #?????????######## | | ?????# ## #???# """ "#?????????# # | | ?????# ## #???# """ "#??######## # | | ?????# ## ##??# """ "#??# ##!! /% | +----------------------------------------------------+ Best States ------------- Heat Dissipation 28 Energy Generation 14 Energy Capacity 250 Matter Stores 300 Matter Capacity 300 Sight Range 18 Robot Scan Range 10 Terrain Scan Range 14 Terrain Scan Density 10 Evasion (%) 40 Armor Integrity Analysis 33 Recoil Reduction 2 Item Schematics ----------------- None Robot Schematics ------------------ None Fabricated ------------ Nothing Alien Tech Used ----------------- None Achievements -------------- None Challenges ------------ None Game ------ Seed TerrainHeatApparatus Manual? 0 Play Time 00:30:09 Cumulative 68.2 hours Start 2020.03.20 @ 08:15:18 End 2020.03.20 @ 08:41:34 Sessions 1 Manual Loads 0 Difficulty Rogue Special Mode None Game No. 86 Rogue 86 Adventurer 0 Explorer 0 Win Type - Total 0 Types 0/0/0/0/0/0/0 Lore% 11 Gallery% 30 Achievement% 21 Wizard Run 0 Options --------- ASCII 0 Keyboard 0 Movement Mouse Keybinds 0 Fullscreen 1 Font 18/SmallcapsGlow Map View 76x50 Tactical HUD 1 Map Filters NONE Filters NONE Steam 1 RUN: 5a023b8b-83df-4be8-81eb-d55b269d6de0